bitfinex-derivatives/quotes_BNBF0:USTF0_20250425
["timestamp","ask_amount","ask_price","bid_price","bid_amount"]
[1745599659308,0.28747739,606.4,604.9,4.521]
[1745599659812,1.24825787,606.38,604.9,4.521]
[1745599661811,0.28747739,606.4,604.9,4.521]
[1745599661812,1.24825787,606.27,604.9,4.521]
[1745599662309,0.28751539,606.26,604.9,4.521]
[1745599664912,1.24825787,606.7,604.9,4.521]
[1745599667214,1.24825787,606.75,604.9,4.521]
[1745599667413,0.28746433,606.69,604.9,4.521]
[1745599668015,1.24825787,606.75,604.9,4.521]
[1745599668311,0.28745839,606.68,604.9,4.521]
[1745599671014,1.24825787,606.71,604.9,4.521]
[1745599671315,0.28746314,606.67,604.9,4.521]
[1745599673918,1.24825787,606.71,604.9,4.521]
[1745599674119,1.24825787,606.35,604.9,4.521]
[1745599676522,1.24825787,606.42,604.9,4.521]
[1745599677321,0.28747857,606.41,604.9,4.521]
[1745599680020,1.24825787,606.42,604.9,4.521]
[1745599680321,0.28747857,606.4,604.9,4.521]
[1745599682925,1.24825787,606.42,604.9,4.521]
[1745599683226,0.28747857,606.39,604.9,4.521]
[1745599684426,1.24825787,606.02,604.9,4.521]
[1745599686930,1.24825787,606.08,604.9,4.521]
[1745599689332,0.28751895,606.2,604.9,4.521]
[1745599694838,1.24825787,606.42,604.9,4.521]
[1745599695140,0.28746195,606.27,604.9,4.521]
[1745599695338,2.12377208,607.16,604.9,4.521]
[1745599695339,1.24825787,606.36,604.9,4.521]
[1745599695639,0.28746195,606.27,604.9,4.521]
[1745599695938,1.24825787,606.36,604.9,4.521]
[1745599696640,0.28746907,606.35,604.9,4.521]
[1745599698044,1.24825787,606.36,604.9,4.521]
[1745599698245,0.28745483,606.34,604.9,4.521]
[1745599698445,1.24825787,606.32,604.9,4.521]
[1745599704054,1.24825787,606.55,604.9,4.521]
[1745599704448,0.28745958,606.33,604.9,4.521]
[1745599704648,1.24825787,606.55,604.9,4.521]
[1745599705350,0.28743227,606.54,604.9,4.521]
[1745599707054,1.24825787,606.54,604.9,4.521]
[1745599707350,0.28743227,606.53,604.9,4.521]
[1745599709653,1.24825787,606.35,604.9,4.521]
[1745599712157,1.24825787,606.46,604.9,4.521]
[1745599713352,0.28744296,606.45,604.9,4.521]
[1745599716059,1.24825787,606.47,604.9,4.521]
[1745599716453,0.28744177,606.46,604.9,4.521]
[1745599718961,1.24825787,606.7,604.9,4.521]
[1745599719361,0.28741447,606.45,604.9,4.521]
[1745599719554,1.24825787,606.7,604.9,4.521]
[1745599720362,0.28741447,606.69,604.9,4.521]
[1745599721464,1.24825787,606.64,604.9,4.521]
[1745599722364,0.28742159,606.63,604.9,4.521]
[1745599724068,1.24825787,606.49,604.9,4.521]
[1745599725466,0.28743939,606.48,604.9,4.521]
[1745599726667,1.24825787,606.43,604.9,4.521]
[1745599728367,0.28744652,606.42,604.9,4.521]
[1745599731173,1.24825787,606.5,604.9,4.521]
[1745599731373,0.28743821,606.41,604.9,4.521]
[1745599731673,1.24825787,606.5,604.9,4.521]
[1745599731972,1.24825787,606.46,604.9,4.521]
[1745599732373,0.28743939,606.45,604.9,4.521]
[1745599735475,1.24825787,606.43,604.9,4.521]
[1745599737171,0.28743939,606.42,604.9,4.521]
[1745599737975,1.24825787,606.4,604.9,4.521]
[1745599741280,0.28743939,606.42,604.9,4.521]
[1745599742982,1.24825787,606.47,604.9,4.521]
[1745599743281,0.28743465,606.41,604.9,4.521]
[1745599745988,1.24825787,606.47,604.9,4.521]
[1745599746390,0.28743465,606.4,604.9,4.521]
[1745599749087,1.24825787,606.43,604.9,4.521]
[1745599749286,0.2874299,606.4,604.9,4.521]
[1745599751290,1.24825787,606.63,604.9,4.521]
[1745599751590,0.28738243,606.5,604.9,4.521]
[1745599751888,1.24825787,606.63,604.9,4.521]
[1745599752991,1.24825787,606.6,604.9,4.521]
[1745599753690,0.28738598,606.59,604.9,4.521]
[1745599754892,1.24825787,606.6,604.9,4.521]
[1745599755392,0.28738598,606.59,604.9,4.521]
[1745599755892,1.24825787,606.57,604.9,4.521]
[1745599758189,0.28738717,606.56,604.9,4.521]
[1745599760997,1.24825787,606.62,604.9,4.521]
[1745599761296,0.28737649,606.55,604.9,4.521]
[1745599763995,1.24825787,606.8,604.9,4.521]
[1745599764397,0.28735395,606.54,604.9,4.521]
[1745599764598,1.24825787,606.8,604.9,4.521]
[1745599765399,0.28734564,606.79,604.9,4.521]
[1745599765599,1.24825787,606.78,604.9,4.521]
[1745599767899,0.28734564,606.79,604.9,4.521]
[1745599768400,0.28734564,606.79,604.91,0.3033129]
[1745599768797,0.28734564,606.79,604.89,0.28735514]
[1745599769003,0.28734564,606.79,604.9,0.3033102]
[1745599770203,1.24825787,606.8,604.9,0.3033102]
[1745599770402,1.24825787,606.8,604.52,0.3033102]
[1745599770703,1.24825787,606.8,604.89,0.28733497]
[1745599770899,1.24825787,606.84,604.9,0.3033102]
[1745599771103,1.24825787,606.84,604.66,0.3033102]
[1745599771305,1.24825787,606.84,604.67,0.3033102]
[1745599771604,0.28735869,606.83,604.89,0.28735869]
[1745599771804,0.28735869,606.83,604.67,0.978]
[1745599771999,0.28735869,606.83,604.9,1.082]
[1745599772501,0.28735869,606.83,604.9,2.573]
[1745599772900,0.28735869,606.83,604.9,4.04]
[1745599773105,1.24825787,606.84,604.9,4.04]
[1745599773406,1.24825787,606.8,604.9,4.04]
[1745599774201,1.24825787,606.8,604.91,0.30332935]
[1745599775007,1.24825787,606.8,604.9,4.04]
[1745599776308,1.24825787,606.71,604.9,4.04]
[1745599778309,1.24825787,606.71,604.91,0.30332457]
[1745599778510,1.24825787,606.71,604.9,4.04]
[1745599778711,0.28733378,606.82,604.9,4.04]
[1745599779208,1.24825787,606.88,604.9,4.04]
[1745599779408,0.28732904,606.81,604.9,4.04]
[1745599782214,1.24825787,606.95,604.9,4.04]
[1745599783416,0.28732073,606.94,604.9,4.04]
[1745599784818,1.24825787,606.91,604.9,4.04]
[1745599785418,0.28732548,606.9,604.9,4.04]
[1745599787822,1.24825787,606.82,604.9,4.04]
[1745599788323,0.28735276,606.81,604.9,4.04]
[1745599791026,1.24825787,606.82,604.9,4.04]
[1745599791336,1.24825787,606.91,604.9,4.04]
[1745599791521,0.28735276,606.81,604.9,4.04]
[1745599791822,1.24825787,606.91,604.9,4.04]
[1745599792527,0.28734209,606.9,604.9,4.04]
[1745599794029,1.24825787,606.91,604.9,4.04]
[1745599794230,1.24825787,606.98,604.9,4.04]
[1745599795630,1.24825787,606.98,604.91,0.30333276]
[1745599795829,0.28732666,606.97,604.91,0.30333276]
[1745599796631,0.28732666,606.97,604.9,1.082]
[1745599796926,0.28732666,606.97,604.91,0.30333225]
[1745599797129,1.24825787,606.98,604.91,0.30333225]
[1745599797329,0.28732666,606.96,604.91,0.30333225]
[1745599798526,0.28732666,606.96,604.91,1.68833225]
[1745599798730,0.28732666,606.96,604.92,0.30333225]
[1745599799427,0.28732666,606.96,604.92,1.43133225]
[1745599799734,0.28732666,606.96,604.93,0.30333225]
[1745599800128,1.24825787,606.98,604.93,0.30333225]
[1745599800328,1.24825787,606.54,604.93,0.30333225]
[1745599801031,1.24825787,606.54,604.92,1.128]
[1745599804737,1.24825787,606.54,604.92,2.204]
[1745599805131,1.24825787,606.54,604.93,0.30330566]
[1745599805335,1.24825787,606.54,604.92,2.204]
[1745599805534,1.24825787,606.54,604.93,0.30330741]
[1745599805729,1.24825787,606.54,604.92,2.204]
[1745599806536,1.24825787,606.55,604.92,2.204]
[1745599808338,0.28735988,606.63,604.92,2.204]
[1745599809134,1.24825787,606.68,604.92,2.204]
[1745599809637,0.28734327,606.63,604.92,2.204]
[1745599812239,1.24825787,606.88,604.92,2.204]
[1745599812431,0.28731955,606.63,604.92,2.204]
[1745599812635,0.28731955,606.63,604.92,3.789]
[1745599812833,1.24825787,606.88,604.92,3.789]
[1745599813341,1.24825787,606.96,604.92,3.789]
[1745599813537,0.28731718,606.87,604.92,3.789]
[1745599813839,1.24825787,606.96,604.92,3.789]
[1745599814039,0.28730769,606.86,604.92,3.789]
[1745599814339,1.24825787,606.96,604.92,3.789]
[1745599814642,0.28730769,606.85,604.92,3.789]
[1745599814939,1.24825787,606.96,604.92,3.789]
[1745599815240,0.28730769,606.84,604.92,3.789]
[1745599815437,1.24825787,606.96,604.92,3.789]
[1745599815741,0.28730769,606.83,604.92,3.789]
[1745599816042,1.24825787,607.02,604.92,3.789]
[1745599816242,0.28730057,606.82,604.92,3.789]
[1745599816541,1.24825787,607.02,604.92,3.789]
[1745599816840,0.28730057,606.81,604.92,3.789]
[1745599817234,1.24825787,607.02,604.92,3.789]
[1745599817438,0.28730057,606.8,604.92,3.789]
[1745599817741,1.24825787,607.02,604.92,3.789]
[1745599818041,1.24825787,606.96,604.93,0.30317773]
[1745599818340,0.28723892,606.9,604.93,0.30317773]
[1745599820842,0.28723892,606.9,604.92,3.789]
[1745599821141,0.28723892,606.9,604.93,0.30321446]
[1745599822343,0.28723892,606.9,604.92,3.789]
[1745599822545,0.28723892,606.9,604.93,0.30320734]
[1745599824147,1.24825787,607.36,604.93,0.30320734]
[1745599825446,0.28721995,607.35,604.92,4.07621995]
[1745599825641,0.28721995,607.35,604.93,0.30321256]
[1745599830146,1.24825787,607.38,604.93,0.30321256]
[1745599830446,0.28721758,607.37,604.93,0.30321256]
[1745599830947,1.24825787,607.31,604.93,0.30321256]
[1745599833348,0.28720454,607.3,604.93,0.30321256]
[1745599833549,1.24825787,607.03,604.93,0.30321256]
[1745599834648,1.24825787,607.03,604.92,1.36320454]
[1745599834848,1.24825787,607.03,604.93,0.30318258]
[1745599836243,1.24825787,607.28,604.92,1.076]
[1745599836450,0.28723773,607.02,604.93,0.30318882]
[1745599836748,1.24825787,607.28,604.93,0.30318882]
[1745599837443,0.28720336,607.27,604.93,0.30318882]
[1745599837749,0.28720336,607.27,604.92,1.36323773]
[1745599837950,0.28720336,607.27,604.93,0.30315639]
[1745599838549,0.28720336,607.27,604.94,0.30315206]
[1745599838748,0.28720336,607.27,604.93,0.30315206]
[1745599838948,0.28720336,607.27,604.94,0.30315206]
[1745599839148,1.24825787,607.64,604.93,0.30315206]
[1745599839347,1.24825787,607.64,604.92,1.076]
[1745599839542,0.2871607,607.63,604.93,0.30315795]
[1745599842254,1.24825787,607.68,604.93,0.30315795]
[1745599842446,0.28715596,607.62,604.92,1.36315596]
[1745599842648,0.28715596,607.62,604.93,0.30315961]
[1745599844152,0.28715596,607.62,604.94,0.30316214]
[1745599844352,0.28715596,607.62,604.93,0.30316214]
[1745599845151,1.24825787,607.64,604.93,0.30316214]
[1745599845351,0.2871607,607.61,604.93,0.30316214]
[1745599845549,0.2871607,607.61,604.92,1.3631607]
[1745599845748,0.2871607,607.61,604.93,0.30315766]
[1745599848353,1.24825787,607.7,604.93,0.30315766]
[1745599848549,0.28715359,607.6,604.92,0.59031125]
[1745599848753,1.24825787,607.7,604.93,1.85915937]
[1745599848956,1.24825787,607.7,604.94,0.30315937]
[1745599849553,0.28715241,607.69,604.94,0.30315937]
[1745599849746,0.28715241,607.69,604.95,1.464]
[1745599849951,0.28715241,607.69,604.96,0.30315937]
[1745599850254,0.28715241,607.69,604.95,1.464]
[1745599850453,0.28715241,607.69,604.96,0.30316384]
[1745599850855,1.24825787,607.28,604.96,0.30316384]
[1745599851755,1.24825787,607.28,604.95,1.464]
[1745599851956,1.24825787,607.28,604.96,0.30314933]
[1745599852455,0.2871998,607.27,604.97,1.219]
[1745599852655,0.2871998,607.27,604.98,0.30314933]
[1745599852955,0.2871998,607.27,604.99,1.06]
[1745599853153,0.2871998,607.27,605.0,0.30314933]
[1745599853857,1.24825787,607.09,605.0,0.30314933]
[1745599854357,0.28719862,607.08,605.0,0.30314933]
[1745599854858,0.28719862,607.08,604.99,1.06]
[1745599855058,0.28719862,607.08,605.0,0.30312084]
[1745599856460,1.24825787,607.05,604.99,1.06]
[1745599856661,1.24825787,607.05,605.0,0.30312102]
[1745599857361,0.28720336,607.04,605.0,0.30312102]
[1745599859566,1.24825787,606.94,604.99,1.06]
[1745599859766,1.24825787,606.94,605.0,0.30312378]
[1745599860869,1.24825787,606.94,604.99,1.34721639]
[1745599861065,1.24825787,606.94,605.0,0.30312759]
[1745599861566,1.24825787,606.94,604.99,1.34721639]
[1745599861768,1.24825787,606.94,605.0,0.3031232]
[1745599862270,0.28721639,607.0,605.18,1.04405207]
[1745599862469,0.28721639,607.0,605.19,0.3031232]
[1745599863072,1.24825787,607.18,605.19,0.3031232]
[1745599863370,0.28717018,606.99,605.19,0.3031232]
[1745599863871,1.24825787,607.18,605.2,0.30313444]
[1745599864067,1.24825787,607.18,605.19,0.30313444]
[1745599864267,1.24825787,607.18,605.2,0.30313444]
[1745599864466,1.24825787,607.18,605.19,0.30313444]
[1745599864670,0.28717018,607.17,605.2,0.30313444]
[1745599864866,0.28717018,607.17,605.21,0.30313444]
[1745599865072,0.28717018,607.17,605.22,0.30313444]
[1745599865372,0.28717018,607.17,605.23,0.30313444]
[1745599865570,0.28717018,607.17,605.24,0.30313444]
[1745599865769,0.28717018,607.17,605.17,1.04405207]
[1745599865970,0.28717018,607.17,605.18,0.30313223]
[1745599866173,1.24825787,607.18,605.18,0.30313223]
[1745599866377,0.28717373,607.16,605.18,0.30313223]
[1745599866771,0.28717373,607.16,605.17,1.04405207]
[1745599866977,0.28717373,607.16,605.18,0.30313183]
[1745599867676,0.28717373,607.16,605.18,1.57913183]
[1745599867979,0.28717373,607.16,605.19,0.30313183]
[1745599869078,1.24825787,607.27,605.19,0.30313183]
[1745599869378,0.28716188,607.15,605.19,0.30313183]
[1745599869679,1.24825787,607.27,605.19,0.30313183]
[1745599869880,1.24825787,607.27,605.18,1.276]
[1745599870081,1.24825787,607.27,605.19,0.30312365]
[1745599870581,0.28716188,607.26,605.19,0.30312365]
[1745599872081,1.24825787,607.27,605.19,0.30312365]
[1745599872677,0.28716188,607.26,605.19,0.30312365]
[1745599872880,0.28716188,607.26,605.18,1.276]
[1745599873176,0.28716188,607.26,605.19,0.30312388]
[1745599873377,0.28716188,607.26,605.18,1.276]
[1745599878086,1.24825787,607.43,605.18,1.276]
[1745599878286,1.24825787,607.38,605.18,1.276]
[1745599880890,1.24825787,607.36,605.18,1.276]
[1745599881390,0.28715833,607.35,605.18,1.276]
[1745599882092,0.28715833,607.35,605.18,2.318]
[1745599884193,1.24825787,607.46,605.18,2.318]
[1745599884388,0.28717018,607.34,605.18,2.318]
[1745599884692,1.24825787,607.46,605.18,2.318]
[1745599885393,0.28715359,607.45,605.18,2.318]
[1745599886595,1.24825787,607.28,605.18,2.318]
[1745599887395,0.28717492,607.27,605.18,2.318]
[1745599889299,1.24825787,607.23,605.18,2.318]
[1745599890698,1.24825787,607.23,605.19,0.30318114]
[1745599891399,1.24825787,606.95,605.19,0.30318114]
[1745599892901,1.24825787,606.76,605.19,0.30318114]
[1745599895200,1.24825787,606.76,605.18,1.56326263]
[1745599895994,1.24825787,606.76,605.18,1.276]
[1745599896198,1.24825787,606.79,605.18,1.276]
[1745599896399,1.24825787,606.79,605.18,1.56326737]
[1745599897400,0.28726855,606.78,605.18,2.87826737]
[1745599899196,1.24825787,607.63,605.18,2.591]
[1745599899499,0.28717373,606.77,605.18,2.87817373]
[1745599899800,1.24825787,607.63,605.18,2.87817373]
[1745599901501,0.28717373,607.62,605.18,2.87817373]
[1745599901902,0.28717373,607.62,605.18,4.46217373]
[1745599902104,1.24825787,606.93,605.18,4.46217373]
[1745599903403,1.24825787,606.93,605.18,5.77417373]
[1745599904306,1.24825787,606.96,605.18,5.77417373]
[1745599905107,1.24825787,606.96,605.18,5.487]
[1745599905401,0.28725314,606.95,605.18,5.77425314]
[1745599907310,1.24825787,606.9,605.18,5.77425314]
[1745599908108,1.24825787,606.9,605.18,5.487]
[1745599908404,0.28726026,606.89,605.18,5.77426026]
[1745599911110,1.24825787,606.95,605.18,5.487]
[1745599911410,0.28726618,606.88,605.18,5.487]
[1745599914112,1.24825787,607.1,605.18,5.487]
[1745599914412,0.28725788,606.87,605.18,5.487]
[1745599914713,1.24825787,607.06,605.18,5.487]
[1745599916411,0.28726263,607.05,605.18,5.487]
[1745599917414,1.24825787,607.02,605.18,5.487]
[1745599919816,0.28726263,607.05,605.18,5.487]
[1745599923217,1.24825787,607.11,605.18,5.487]
[1745599923414,0.28723892,607.04,605.18,5.487]
[1745599926123,1.24825787,607.17,605.18,5.487]
[1745599926523,0.2871998,607.16,605.18,5.487]
[1745599926824,0.2871998,607.16,605.19,0.30315148]
[1745599927724,0.2871998,607.16,605.18,1.312]
[1745599927918,0.2871998,607.16,605.19,0.30313184]
[1745599929123,1.24825787,607.17,605.19,0.30313184]
[1745599929425,0.2871761,607.15,605.19,0.30313184]
[1745599929825,0.2871761,607.15,605.2,1.498]
[1745599930021,0.2871761,607.15,605.21,0.30313184]
[1745599930426,1.24825787,607.01,605.21,0.30313184]
[1745599930925,1.24825787,607.01,605.22,1.455]
[1745599931126,1.24825787,607.01,605.22,2.664]
[1745599931326,1.24825787,607.01,605.23,0.30313184]
[1745599932425,0.28719032,607.0,605.23,0.30313184]
[1745599933927,0.28719032,607.0,605.22,2.664]
[1745599934129,0.28719032,607.0,605.23,0.30313225]
[1745599935431,0.28719032,607.0,605.22,2.664]
[1745599935632,0.28719032,607.0,605.23,0.30313221]
[1745599936233,0.28719032,607.0,605.22,2.664]
[1745599936624,0.28719032,607.0,605.23,0.30310161]
[1745599938135,1.24825787,607.28,605.23,0.30310161]
[1745599938328,1.24825787,607.49,605.23,0.30310161]
[1745599938531,0.28714885,607.0,605.23,0.30310161]
[1745599938733,1.24825787,607.49,605.22,2.664]
[1745599938927,1.24825787,607.49,605.23,0.3030988]
[1745599939129,1.24825787,607.49,605.24,1.397]
[1745599939334,1.24825787,607.49,605.25,0.3030988]
[1745599939936,0.28712161,607.48,605.25,0.3030988]
[1745599940234,0.28712161,607.48,605.24,1.397]
[1745599941135,1.24825787,607.49,605.24,1.397]
[1745599941435,0.28712161,607.47,605.24,1.397]
[1745599946839,1.24825787,607.41,605.24,1.397]
[1745599947543,0.28715241,607.4,605.24,1.397]
[1745599948643,0.28715241,607.4,605.25,1.075]
[1745599949645,0.28715241,607.4,605.26,1.599]
[1745599951748,1.24825787,607.28,605.26,1.599]
[1745599953551,0.28718677,607.27,605.26,1.599]
[1745599954051,1.53544464,607.27,605.26,1.599]
[1745599956153,1.24825787,607.27,605.26,1.599]
[1745599956454,0.28718795,607.26,605.26,1.599]
[1745599956654,1.24825787,607.11,605.26,1.599]
[1745599958955,1.24825787,607.09,605.26,1.599]
[1745599959457,0.28720691,607.08,605.26,1.599]
[1745599962157,1.24825787,607.26,605.26,1.599]
[1745599962357,0.28718677,607.07,605.26,1.599]
[1745599962653,1.24825787,607.26,605.26,1.599]
[1745599963654,1.24825787,607.25,605.26,1.599]
[1745599964458,0.28718795,607.24,605.26,1.599]
[1745599965154,1.24825787,607.25,605.26,1.599]
[1745599965658,0.28718795,607.24,605.26,1.599]
[1745599967054,1.24825787,607.21,605.26,1.599]
[1745599969555,1.24825787,607.21,605.25,1.36218795]
[1745599969760,1.24825787,607.16,605.25,1.36218795]
[1745599971161,1.24825787,607.16,605.25,1.075]
[1745599971363,0.28718795,607.15,605.25,1.36218795]
[1745599973557,0.28718795,607.15,605.26,1.509]
[1745599974261,1.24825787,607.16,605.26,1.509]
[1745599974464,1.24825787,607.13,605.26,1.509]
[1745599975164,1.24825787,607.13,605.27,0.30313733]
[1745599976663,1.24825787,607.13,605.27,1.75413733]
[1745599976863,1.24825787,607.13,605.28,0.30313733]
[1745599977363,1.24825787,607.05,605.28,0.30313733]
[1745599979264,1.24825787,607.05,605.27,1.451]
[1745599979468,1.24825787,607.05,605.29,0.30312157]
[1745599979764,1.24825787,607.05,605.3,0.30312157]
[1745599979966,1.24825787,607.05,605.28,0.30312157]
[1745599980165,1.24825787,607.05,605.29,0.30312157]
[1745599980361,1.24825787,607.05,605.28,0.30312157]
[1745599980562,0.28717492,607.04,605.28,0.30312157]
[1745599980865,0.28717492,607.04,605.29,0.30312067]
[1745599981066,0.28717492,607.04,605.28,0.30312067]
[1745599981263,0.28717492,607.04,605.29,0.30312067]
[1745599981465,0.28717492,607.04,605.28,0.30312067]
[1745599981766,0.28717492,607.04,605.27,1.73817492]
[1745599981967,0.28717492,607.04,605.28,0.30312144]
[1745599983168,1.24825787,607.15,605.28,0.30312144]
[1745599983367,1.24825787,607.15,605.28,0.989]
[1745599983565,0.28716307,607.03,605.28,0.989]
[1745599983765,1.24825787,607.15,605.28,0.989]
[1745599984264,1.24825787,607.15,605.29,0.30312127]
[1745599984464,0.28716188,607.14,605.29,0.30312127]
[1745599984866,0.28716188,607.14,605.28,0.989]
[1745599985069,0.28716188,607.14,605.29,0.30312095]
[1745599986169,1.24825787,607.19,605.28,0.989]
[1745599986470,0.28715714,607.13,605.28,1.27615714]
[1745599987264,1.24825787,607.11,605.28,1.27615714]
[1745599987569,1.24825787,607.11,605.28,2.32115714]
[1745599989168,1.24825787,607.11,605.28,2.034]
[1745599989370,1.24825787,607.11,605.29,0.30311126]
[1745599989571,0.28715714,607.1,605.29,0.30311126]
[1745599990565,0.28715714,607.1,605.29,1.37611126]
[1745599990772,0.28715714,607.1,605.3,0.30311126]
[1745599991166,0.28715714,607.1,605.29,2.427]
[1745599991366,0.28715714,607.1,605.3,0.30308229]
[1745599992167,1.24825787,607.18,605.3,0.30308229]
[1745599992571,0.28713108,607.17,605.3,0.30308229]
[1745599994172,0.28713108,607.17,605.29,2.71413108]
[1745599994365,0.28713108,607.17,605.3,0.30306602]
[1745599995772,0.28713108,607.17,605.29,2.71413108]
[1745599995969,0.28713108,607.17,605.31,0.3030627]
[1745599996169,0.28713108,607.17,605.32,0.3030627]
[1745599996373,0.28713108,607.17,605.33,0.3030627]
[1745599996569,0.28713108,607.17,605.3,0.3030627]
[1745599996767,0.28713108,607.17,605.31,0.3030627]
[1745599996970,0.28713108,607.17,605.3,0.3030627]
[1745599998176,1.24825787,607.34,605.3,0.3030627]
[1745599998778,0.28711213,607.33,605.29,2.71411213]
[1745599998983,0.28711213,607.33,605.3,0.30306575]
[1745600001182,1.24825787,607.49,605.3,0.30306575]
[1745600001380,0.28709437,607.32,605.3,0.30306575]
[1745600001682,1.24825787,607.49,605.3,0.30306575]
[1745600003582,0.28709437,607.48,605.3,0.30306575]
[1745600004180,1.24825787,607.49,605.3,0.30306575]
[1745600004384,1.24825787,607.49,605.29,2.427]
[1745600004584,0.28711331,607.47,605.29,2.427]
[1745600004885,1.53537118,607.47,605.29,2.427]
[1745600005484,1.53537118,607.47,605.29,2.71411568]
[1745600007185,1.24825787,607.47,605.29,2.427]
[1745600007484,0.28711805,607.46,605.29,2.71411805]
[1745600008184,1.24825787,607.3,605.29,2.71411805]
[1745600011381,1.24825787,607.45,605.29,2.71411805]
[1745600012586,1.24825787,607.45,605.29,4.32511805]
[1745600013188,1.24825787,607.45,605.29,4.038]
[1745600013687,0.28713227,607.44,605.29,4.32513227]
[1745600016193,1.24825787,607.47,605.29,4.038]
[1745600016593,0.2871299,607.46,605.29,4.3251299]
[1745600017195,1.24825787,607.08,605.29,4.3251299]
[1745600018098,1.24825787,607.08,605.29,5.7001299]
[1745600019196,1.24825787,607.08,605.29,5.413]
[1745600019496,1.24825787,607.05,605.29,5.413]
[1745600019796,1.24825787,607.05,605.29,5.70019743]
[1745600022202,1.24825787,607.05,605.29,5.413]
[1745600022399,1.24825787,607.13,605.29,5.413]
[1745600022599,0.28720099,607.04,605.29,5.70020099]
[1745600022996,1.24825787,607.13,605.29,5.70020099]
[1745600024503,0.28719151,607.12,605.29,5.70020099]
[1745600025301,1.24825787,607.21,605.29,5.413]
[1745600025602,0.28718203,607.11,605.29,5.70018203]
[1745600025903,1.24825787,607.21,605.29,5.70018203]
[1745600026706,0.28718203,607.2,605.29,5.70018203]
[1745600028305,1.24825787,607.33,605.29,5.413]
[1745600028806,0.28716781,607.19,605.29,5.70016781]
[1745600029008,1.24825787,607.33,605.29,5.70016781]
[1745600030212,1.24825787,607.34,605.29,5.70016781]
[1745600030512,0.28716781,607.32,605.29,5.70016781]
[1745600031212,1.24825787,607.34,605.29,5.413]
[1745600031608,0.28716662,607.31,605.29,5.70016662]
[1745600032615,1.24825787,607.22,605.29,5.70016662]
[1745600034316,1.24825787,607.22,605.29,5.413]
[1745600034617,0.28718558,607.21,605.29,5.70018558]
[1745600035017,1.24825787,607.19,605.29,5.70018558]
[1745600037115,1.24825787,607.19,605.29,5.413]
[1745600037620,0.28718914,607.18,605.29,5.70018914]
[1745600037820,1.24825787,607.07,605.29,5.70018914]
[1745600040224,1.24825787,607.07,605.29,5.413]
[1745600040622,0.28720336,607.06,605.29,5.70020336]
[1745600042126,1.24825787,606.94,605.29,5.70020336]
[1745600043226,1.24825787,606.94,605.29,5.413]
[1745600043621,0.28723062,606.93,605.29,5.413]
[1745600052131,1.24825787,607.07,605.29,5.413]
[1745600052626,0.2872081,607.06,605.29,5.413]
[1745600054134,1.24825787,606.9,605.29,5.413]
[1745600055633,0.28722825,606.89,605.29,5.413]
[1745600056629,1.24825787,606.86,605.29,5.413]
[1745600058634,0.28723299,606.85,605.29,5.413]
[1745600061233,1.24825787,606.86,605.29,5.413]
[1745600061632,0.28723299,606.85,605.29,5.413]
[1745600062138,1.24825787,606.84,605.29,5.413]
[1745600064440,1.24825787,606.98,605.29,5.413]
[1745600064636,0.28722825,606.85,605.29,5.413]
[1745600064940,1.24825787,606.98,605.29,5.413]
[1745600066441,0.28720691,606.97,605.29,5.413]
[1745600067143,1.24825787,606.98,605.29,5.413]
[1745600067442,1.24825787,606.94,605.29,5.413]
[1745600069945,0.28720691,606.97,605.29,5.413]
[1745600070144,1.24825787,607.02,605.29,5.413]
[1745600070645,0.2871998,607.01,605.29,5.413]
[1745600073247,1.24825787,607.04,605.29,5.413]
[1745600073746,0.28719506,607.03,605.29,5.413]
[1745600075051,1.24825787,606.98,605.29,5.413]
[1745600077249,0.28719506,607.03,605.29,5.413]
[1745600079148,1.24825787,607.41,605.29,5.413]
[1745600079448,0.28711805,607.04,605.29,5.413]
[1745600079748,1.24825787,607.41,605.29,5.413]
[1745600080549,1.24825787,607.34,605.29,5.413]
[1745600081252,0.28712634,607.33,605.29,5.413]
[1745600082252,1.24825787,607.34,605.29,5.413]
[1745600082652,0.28712634,607.33,605.29,5.413]
[1745600082853,0.28712634,607.33,605.3,0.30310957]
[1745600083053,1.53538421,607.33,605.3,0.30310957]
[1745600083552,1.53538421,607.33,605.31,0.30310957]
[1745600083750,1.53538421,607.33,605.28,0.28712634]
[1745600083954,1.53538421,607.33,605.29,0.30310928]